[Event "Titled Tuesday Blitz March 15 Late 2022"]
[White "Rozman, Levy"]
[Black "Costachi, Mihnea"]
[WhiteFideId "2039877"]
[BlackFideId "1217518"]
[WhiteElo "2376"]
[BlackElo "2464"]
[Result "1-0"]
[Round "11"]
[TimeControl "180+1"]
[Date "2022.03.15"]
[WhiteClock "0:00:06"]
[BlackClock "0:00:17"]

1. d4 {[%clk 0:03:00]}  Nf6 {[%clk 0:02:59]} 2. Bg5 {[%clk 0:03:00]}  Ne4 {[%clk 0:02:59]} 3. h4 {[%clk 0:03:00]}  c5 {[%clk 0:02:58]} 4. d5 {[%clk 0:03:00]}  Qb6 {[%clk 0:02:58]} 5. Nd2 {[%clk 0:03:01]}  Nxd2 {[%clk 0:02:53]} 6. Bxd2 {[%clk 0:03:01]}  Qxb2 {[%clk 0:02:52]} 7. e4 {[%clk 0:02:59]}  d6 {[%clk 0:02:52]} 8. Rb1 {[%clk 0:02:56]}  Qe5 {[%clk 0:02:27]} 9. Bd3 {[%clk 0:02:50]}  Nd7 {[%clk 0:02:16]} 10. Nf3 {[%clk 0:02:34]}  Qh5 {[%clk 0:02:16]} 11. Bc3 {[%clk 0:01:27]}  e5 {[%clk 0:02:09]} 12. dxe6 {[%clk 0:01:24]}  fxe6 {[%clk 0:02:10]} 13. Rg1 {[%clk 0:01:19]}  Be7 {[%clk 0:02:09]} 14. Bxg7 {[%clk 0:01:14]}  Rg8 {[%clk 0:02:09]} 15. Bc3 {[%clk 0:01:14]}  Nb6 {[%clk 0:02:01]} 16. g3 {[%clk 0:01:09]}  Bd7 {[%clk 0:01:57]} 17. Be2 {[%clk 0:01:09]}  Qg6 {[%clk 0:01:53]} 18. Ng5 {[%clk 0:00:58]}  O-O-O {[%clk 0:01:33]} 19. Bh5 {[%clk 0:00:58]}  Qh6 {[%clk 0:01:33]} 20. Nf7 {[%clk 0:00:55]}  Qf8 {[%clk 0:01:32]} 21. Nxd8 {[%clk 0:00:53]}  Bxd8 {[%clk 0:01:28]} 22. Qf3 {[%clk 0:00:46]}  Qe7 {[%clk 0:01:24]} 23. Qf7 {[%clk 0:00:41]}  Qxf7 {[%clk 0:01:22]} 24. Bxf7 {[%clk 0:00:42]}  Rf8 {[%clk 0:01:23]} 25. Bh5 {[%clk 0:00:42]}  Bc6 {[%clk 0:01:19]} 26. f3 {[%clk 0:00:33]}  Nc4 {[%clk 0:01:19]} 27. Ke2 {[%clk 0:00:30]}  b5 {[%clk 0:01:18]} 28. Bg4 {[%clk 0:00:29]}  Kd7 {[%clk 0:01:18]} 29. Rgd1 {[%clk 0:00:27]}  b4 {[%clk 0:01:16]} 30. Ba1 {[%clk 0:00:23]}  Ke7 {[%clk 0:01:05]} 31. c3 {[%clk 0:00:21]}  a5 {[%clk 0:01:03]} 32. cxb4 {[%clk 0:00:21]}  axb4 {[%clk 0:01:04]} 33. Rbc1 {[%clk 0:00:19]}  Na3 {[%clk 0:00:57]} 34. Bg7 {[%clk 0:00:19]}  Rf7 {[%clk 0:00:49]} 35. Bh6 {[%clk 0:00:19]}  Bb6 {[%clk 0:00:47]} 36. Bg5+ {[%clk 0:00:17]}  Kd7 {[%clk 0:00:48]} 37. Bf4 {[%clk 0:00:16]}  Nb5 {[%clk 0:00:45]} 38. Bxd6 {[%clk 0:00:09]}  Nd4+ {[%clk 0:00:23]} 39. Rxd4 {[%clk 0:00:07]}  cxd4 {[%clk 0:00:24]} 40. Bxb4 {[%clk 0:00:07]}  Bb5+ {[%clk 0:00:24]} 41. Kd2 {[%clk 0:00:07]}  Rg7 {[%clk 0:00:18]} 42. h5 {[%clk 0:00:07]}  Rg8 {[%clk 0:00:19]} 43. a4 {[%clk 0:00:03]}  Bxa4 {[%clk 0:00:16]} 44. Bc5 {[%clk 0:00:03]}  Ba5+ {[%clk 0:00:16]} 45. Kd3 {[%clk 0:00:03]}  Rb8 {[%clk 0:00:09]} 46. Bxd4 {[%clk 0:00:03]}  Rb2 {[%clk 0:00:10]} 47. Bxb2 {[%clk 0:00:03]}  Bb5+ {[%clk 0:00:10]} 48. Ke3 {[%clk 0:00:03]}  Bb6+ {[%clk 0:00:10]} 49. Bd4 {[%clk 0:00:04]}  Ba5 {[%clk 0:00:11]} 50. Bc3 {[%clk 0:00:04]}  Ba4 {[%clk 0:00:12]} 51. Bxa5 {[%clk 0:00:04]}  Bb3 {[%clk 0:00:13]} 52. Rc3 {[%clk 0:00:05]}  Bc4 {[%clk 0:00:14]} 53. f4 {[%clk 0:00:06]}  Bd3 {[%clk 0:00:15]} 54. e5 {[%clk 0:00:06]}  Bf5 {[%clk 0:00:14]} 55. Bxf5 {[%clk 0:00:06]}  exf5 {[%clk 0:00:15]} 56. Kd4 {[%clk 0:00:06]}  Ke6 {[%clk 0:00:16]} 57. Rc6+ {[%clk 0:00:07]}  Kf7 {[%clk 0:00:16]} 58. Rf6+ {[%clk 0:00:07]}  Kg8 {[%clk 0:00:17]} 59. h6 {[%clk 0:00:06]}  Kh8 {[%clk 0:00:17]} 60. Rf8# {[%clk 0:00:06]} 1-0


[Site "https://www.chess.com"]

[Event "Titled Tuesday Blitz March 15 Late 2022"]
[White "Rustemov, Alexander"]
[Black "Zhigalko, Sergei"]
[WhiteFideId "4119002"]
[BlackFideId "13502956"]
[WhiteElo "2762"]
[BlackElo "2662"]
[Result "1-0"]
[Round "11"]
[TimeControl "180+1"]
[Date "2022.03.15"]
[WhiteClock "0:00:19"]
[BlackClock "0:00:02"]

1. d4 {[%clk 0:02:58]}  Nf6 {[%clk 0:02:59]} 2. Bg5 {[%clk 0:02:58]}  e6 {[%clk 0:02:59]} 3. e4 {[%clk 0:02:51]}  h6 {[%clk 0:02:59]} 4. Bxf6 {[%clk 0:02:51]}  Qxf6 {[%clk 0:03:00]} 5. Nc3 {[%clk 0:02:50]}  Bb4 {[%clk 0:02:58]} 6. Qd2 {[%clk 0:02:49]}  O-O {[%clk 0:02:51]} 7. f4 {[%clk 0:02:45]}  c5 {[%clk 0:02:40]} 8. e5 {[%clk 0:02:29]}  Qe7 {[%clk 0:02:28]} 9. a3 {[%clk 0:02:28]}  Bxc3 {[%clk 0:02:09]} 10. bxc3 {[%clk 0:02:28]}  b6 {[%clk 0:01:54]} 11. Nf3 {[%clk 0:02:16]}  Bb7 {[%clk 0:01:53]} 12. Be2 {[%clk 0:02:14]}  d6 {[%clk 0:01:51]} 13. O-O {[%clk 0:02:11]}  Rd8 {[%clk 0:01:50]} 14. Qe3 {[%clk 0:02:04]}  Nc6 {[%clk 0:01:44]} 15. Rae1 {[%clk 0:01:45]}  Rd7 {[%clk 0:00:57]} 16. Bd3 {[%clk 0:01:43]}  Rad8 {[%clk 0:00:51]} 17. Qe4 {[%clk 0:01:32]}  g6 {[%clk 0:00:49]} 18. Qe3 {[%clk 0:01:32]}  cxd4 {[%clk 0:00:44]} 19. cxd4 {[%clk 0:01:29]}  dxe5 {[%clk 0:00:45]} 20. fxe5 {[%clk 0:00:53]}  Nxd4 {[%clk 0:00:24]} 21. Nxd4 {[%clk 0:00:53]}  Rxd4 {[%clk 0:00:22]} 22. Qxh6 {[%clk 0:00:53]}  Rg4 {[%clk 0:00:13]} 23. Rf2 {[%clk 0:00:43]}  Qc5 {[%clk 0:00:14]} 24. Kf1 {[%clk 0:00:35]}  Rdd4 {[%clk 0:00:05]} 25. Re3 {[%clk 0:00:29]}  Rh4 {[%clk 0:00:04]} 26. Qg5 {[%clk 0:00:26]}  Qf8 {[%clk 0:00:02]} 27. Bxg6 {[%clk 0:00:25]}  Rhg4 {[%clk 0:00:02]} 28. Bxf7+ {[%clk 0:00:23]}  Kh8 {[%clk 0:00:02]} 29. Rh3+ {[%clk 0:00:19]} 1-0


[Site "https://www.chess.com"]

[Event "Titled Tuesday Blitz March 15 Late 2022"]
[White "Sanchez Alvares, Kelvin Antonio"]
[Black "Mekhitarian, Krikor Sevag"]
[WhiteFideId "3906680"]
[BlackFideId "2107660"]
[WhiteElo "2193"]
[BlackElo "2598"]
[Result "0-1"]
[Round "11"]
[TimeControl "180+1"]
[Date "2022.03.15"]
[WhiteClock "0:01:37"]
[BlackClock "0:01:55"]

1. e4 {[%clk 0:02:45]}  c5 {[%clk 0:02:58]} 2. Nf3 {[%clk 0:02:46]}  g6 {[%clk 0:02:58]} 3. d4 {[%clk 0:02:45]}  cxd4 {[%clk 0:02:59]} 4. Nxd4 {[%clk 0:02:45]}  Nc6 {[%clk 0:02:59]} 5. c4 {[%clk 0:02:45]}  Nf6 {[%clk 0:02:59]} 6. Nc3 {[%clk 0:02:44]}  d6 {[%clk 0:02:59]} 7. f3 {[%clk 0:02:42]}  Nxd4 {[%clk 0:02:59]} 8. Qxd4 {[%clk 0:02:42]}  Bg7 {[%clk 0:03:00]} 9. Be3 {[%clk 0:02:42]}  O-O {[%clk 0:03:00]} 10. Qd2 {[%clk 0:02:42]}  a5 {[%clk 0:03:01]} 11. Rc1 {[%clk 0:02:39]}  a4 {[%clk 0:03:01]} 12. Be2 {[%clk 0:02:39]}  Be6 {[%clk 0:03:01]} 13. Nb5 {[%clk 0:02:33]}  Nd7 {[%clk 0:02:57]} 14. Nd4 {[%clk 0:02:33]}  Qa5 {[%clk 0:02:53]} 15. Qxa5 {[%clk 0:02:32]}  Rxa5 {[%clk 0:02:53]} 16. Nxe6 {[%clk 0:02:27]}  fxe6 {[%clk 0:02:54]} 17. Rc2 {[%clk 0:02:21]}  Rc8 {[%clk 0:02:54]} 18. Kd2 {[%clk 0:02:19]}  Nc5 {[%clk 0:02:39]} 19. Rb1 {[%clk 0:02:15]}  Ra6 {[%clk 0:02:38]} 20. b4 {[%clk 0:02:08]}  axb3 {[%clk 0:02:39]} 21. axb3 {[%clk 0:02:09]}  Ra3 {[%clk 0:02:39]} 22. b4 {[%clk 0:02:07]}  Nb3+ {[%clk 0:02:20]} 23. Ke1 {[%clk 0:02:06]}  Na1 {[%clk 0:02:20]} 24. Rxa1 {[%clk 0:01:54]}  Bxa1 {[%clk 0:02:11]} 25. Kf2 {[%clk 0:01:46]}  e5 {[%clk 0:02:02]} 26. f4 {[%clk 0:01:39]}  exf4 {[%clk 0:01:54]} 27. Bxf4 {[%clk 0:01:37]}  Rf8 {[%clk 0:01:55]} 0-1


[Site "https://www.chess.com"]

[Event "Titled Tuesday Blitz March 15 Late 2022"]
[White "Sokolovsky, Yahli"]
[Black "Bryakin, Mikhail"]
[WhiteFideId "2820242"]
[BlackFideId "4165314"]
[WhiteElo "1770"]
[BlackElo "2417"]
[Result "1-0"]
[Round "11"]
[TimeControl "180+1"]
[Date "2022.03.15"]
[WhiteClock "0:00:20"]
[BlackClock "0:00:02"]

1. b3 {[%clk 0:03:00]}  c5 {[%clk 0:02:54]} 2. Bb2 {[%clk 0:03:00]}  Nc6 {[%clk 0:02:54]} 3. e3 {[%clk 0:03:01]}  Nf6 {[%clk 0:02:54]} 4. Nf3 {[%clk 0:03:00]}  g6 {[%clk 0:02:53]} 5. d4 {[%clk 0:02:58]}  cxd4 {[%clk 0:02:53]} 6. exd4 {[%clk 0:02:58]}  d5 {[%clk 0:02:53]} 7. a3 {[%clk 0:02:58]}  Bg7 {[%clk 0:02:54]} 8. Bd3 {[%clk 0:02:59]}  O-O {[%clk 0:02:54]} 9. O-O {[%clk 0:03:00]}  Bf5 {[%clk 0:02:53]} 10. Ne5 {[%clk 0:02:59]}  Bxd3 {[%clk 0:02:50]} 11. Qxd3 {[%clk 0:02:59]}  Nd7 {[%clk 0:02:49]} 12. f4 {[%clk 0:02:55]}  f5 {[%clk 0:02:43]} 13. Nxd7 {[%clk 0:02:52]}  Qxd7 {[%clk 0:02:43]} 14. Nd2 {[%clk 0:02:53]}  e6 {[%clk 0:02:36]} 15. Nf3 {[%clk 0:02:53]}  Rac8 {[%clk 0:02:36]} 16. Rfe1 {[%clk 0:02:54]}  h6 {[%clk 0:02:34]} 17. Re2 {[%clk 0:02:54]}  Rfe8 {[%clk 0:02:35]} 18. Rae1 {[%clk 0:02:54]}  Kf7 {[%clk 0:02:35]} 19. c4 {[%clk 0:02:44]}  a6 {[%clk 0:02:34]} 20. c5 {[%clk 0:02:42]}  Bf6 {[%clk 0:02:33]} 21. b4 {[%clk 0:02:42]}  Na7 {[%clk 0:02:31]} 22. Qb3 {[%clk 0:02:37]}  g5 {[%clk 0:02:21]} 23. fxg5 {[%clk 0:02:32]}  hxg5 {[%clk 0:02:22]} 24. a4 {[%clk 0:02:30]}  g4 {[%clk 0:02:22]} 25. Ne5+ {[%clk 0:02:26]}  Bxe5 {[%clk 0:02:22]} 26. Rxe5 {[%clk 0:02:26]}  Nc6 {[%clk 0:02:17]} 27. R5e2 {[%clk 0:02:26]}  Ne7 {[%clk 0:02:15]} 28. Bc1 {[%clk 0:02:21]}  Ng6 {[%clk 0:02:15]} 29. g3 {[%clk 0:02:19]}  Ra8 {[%clk 0:02:04]} 30. Bg5 {[%clk 0:02:11]}  Qc6 {[%clk 0:01:58]} 31. b5 {[%clk 0:02:11]}  axb5 {[%clk 0:01:57]} 32. axb5 {[%clk 0:02:11]}  Qd7 {[%clk 0:01:57]} 33. Rc2 {[%clk 0:01:59]}  Rec8 {[%clk 0:01:52]} 34. Rec1 {[%clk 0:01:57]}  Qc7 {[%clk 0:01:35]} 35. c6 {[%clk 0:01:56]}  b6 {[%clk 0:01:34]} 36. Bd2 {[%clk 0:01:43]}  Qa7 {[%clk 0:01:22]} 37. c7 {[%clk 0:01:34]}  Qa4 {[%clk 0:01:22]} 38. Qe3 {[%clk 0:01:18]}  Qxb5 {[%clk 0:01:15]} 39. Rc6 {[%clk 0:01:19]}  Nf8 {[%clk 0:01:04]} 40. Qe5 {[%clk 0:01:05]}  Ra1 {[%clk 0:00:52]} 41. Bh6 {[%clk 0:00:58]}  Rxc1+ {[%clk 0:00:38]} 42. Rxc1 {[%clk 0:00:59]}  Qb4 {[%clk 0:00:16]} 43. Qg7+ {[%clk 0:00:36]}  Ke8 {[%clk 0:00:16]} 44. Bg5 {[%clk 0:00:28]}  Qd6 {[%clk 0:00:08]} 45. Bd8 {[%clk 0:00:28]}  Qd7 {[%clk 0:00:06]} 46. Qe5 {[%clk 0:00:29]}  Kf7 {[%clk 0:00:03]} 47. h3 {[%clk 0:00:21]}  Ng6 {[%clk 0:00:02]} 48. Qe3 {[%clk 0:00:20]} 1-0


[Site "https://www.chess.com"]

[Event "Titled Tuesday Blitz March 15 Late 2022"]
[White "Solon, Nathan"]
[Black "Jaskolka, Tomasz"]
[WhiteFideId "2017229"]
[BlackFideId "1170791"]
[WhiteElo "2579"]
[BlackElo "2073"]
[Result "1/2-1/2"]
[Round "11"]
[TimeControl "180+1"]
[Date "2022.03.16"]
[WhiteClock "0:00:11"]
[BlackClock "0:00:21"]

1. d4 {[%clk 0:03:00]}  Nf6 {[%clk 0:02:58]} 2. c4 {[%clk 0:03:00]}  e6 {[%clk 0:02:59]} 3. g3 {[%clk 0:03:00]}  Bb4+ {[%clk 0:02:53]} 4. Nd2 {[%clk 0:03:00]}  d5 {[%clk 0:02:51]} 5. Bg2 {[%clk 0:02:59]}  c6 {[%clk 0:02:51]} 6. Nf3 {[%clk 0:02:58]}  O-O {[%clk 0:02:51]} 7. O-O {[%clk 0:02:58]}  b6 {[%clk 0:02:49]} 8. b3 {[%clk 0:02:44]}  Bb7 {[%clk 0:02:28]} 9. Bb2 {[%clk 0:02:44]}  Nbd7 {[%clk 0:02:28]} 10. Rc1 {[%clk 0:02:40]}  Rc8 {[%clk 0:02:26]} 11. a3 {[%clk 0:02:36]}  Bxd2 {[%clk 0:02:26]} 12. Qxd2 {[%clk 0:02:34]}  dxc4 {[%clk 0:02:21]} 13. bxc4 {[%clk 0:02:25]}  c5 {[%clk 0:02:14]} 14. d5 {[%clk 0:02:21]}  exd5 {[%clk 0:02:13]} 15. Nh4 {[%clk 0:02:21]}  Ne4 {[%clk 0:02:02]} 16. Bxe4 {[%clk 0:02:14]}  dxe4 {[%clk 0:02:00]} 17. Nf5 {[%clk 0:02:00]}  f6 {[%clk 0:01:44]} 18. Rfd1 {[%clk 0:01:59]}  Ne5 {[%clk 0:01:35]} 19. Bxe5 {[%clk 0:01:52]}  Qxd2 {[%clk 0:01:31]} 20. Rxd2 {[%clk 0:01:52]}  fxe5 {[%clk 0:01:31]} 21. Ne7+ {[%clk 0:01:52]}  Kf7 {[%clk 0:01:27]} 22. Nxc8 {[%clk 0:01:53]}  Bxc8 {[%clk 0:01:27]} 23. f3 {[%clk 0:01:25]}  exf3 {[%clk 0:01:22]} 24. exf3 {[%clk 0:01:26]}  Be6 {[%clk 0:01:21]} 25. Re1 {[%clk 0:01:22]}  Bxc4 {[%clk 0:01:14]} 26. Rxe5 {[%clk 0:01:22]}  Kf6 {[%clk 0:01:12]} 27. f4 {[%clk 0:01:22]}  Be6 {[%clk 0:01:10]} 28. Rd6 {[%clk 0:01:22]}  Re8 {[%clk 0:01:10]} 29. Kf2 {[%clk 0:01:13]}  g6 {[%clk 0:01:03]} 30. Ke3 {[%clk 0:01:07]}  Kf7 {[%clk 0:01:01]} 31. Rc6 {[%clk 0:00:38]}  Re7 {[%clk 0:00:58]} 32. Kf3 {[%clk 0:00:25]}  h5 {[%clk 0:00:53]} 33. Ke3 {[%clk 0:00:26]}  c4 {[%clk 0:00:43]} 34. Kd4 {[%clk 0:00:25]}  Rd7+ {[%clk 0:00:42]} 35. Kc3 {[%clk 0:00:23]}  Rd3+ {[%clk 0:00:41]} 36. Kc2 {[%clk 0:00:24]}  Bf5 {[%clk 0:00:40]} 37. Rxc4 {[%clk 0:00:20]}  Rxa3+ {[%clk 0:00:35]} 38. Kb2 {[%clk 0:00:20]}  Rf3 {[%clk 0:00:30]} 39. Rc7+ {[%clk 0:00:20]}  Kf6 {[%clk 0:00:30]} 40. Rxa7 {[%clk 0:00:21]}  Rf2+ {[%clk 0:00:30]} 41. Kc3 {[%clk 0:00:21]}  Rxh2 {[%clk 0:00:31]} 42. Rb5 {[%clk 0:00:19]}  Be4 {[%clk 0:00:22]} 43. Rxb6+ {[%clk 0:00:18]}  Kf5 {[%clk 0:00:22]} 44. Ra5+ {[%clk 0:00:16]}  Kg4 {[%clk 0:00:21]} 45. Rg5+ {[%clk 0:00:17]}  Kf3 {[%clk 0:00:22]} 46. Kd4 {[%clk 0:00:13]}  Rd2+ {[%clk 0:00:17]} 47. Ke5 {[%clk 0:00:13]}  Rd5+ {[%clk 0:00:18]} 48. Kf6 {[%clk 0:00:14]}  Rxg5 {[%clk 0:00:18]} 49. Kxg5 {[%clk 0:00:13]}  Kxg3 {[%clk 0:00:18]} 50. Rb3+ {[%clk 0:00:13]}  Kf2 {[%clk 0:00:18]} 51. Rc3 {[%clk 0:00:12]}  Bf5 {[%clk 0:00:18]} 52. Ra3 {[%clk 0:00:12]}  Kg2 {[%clk 0:00:19]} 53. Rc3 {[%clk 0:00:12]}  Kf2 {[%clk 0:00:19]} 54. Rb3 {[%clk 0:00:11]}  Kg2 {[%clk 0:00:20]} 55. Ra3 {[%clk 0:00:11]}  Kf2 {[%clk 0:00:20]} 56. Kh4 {[%clk 0:00:11]}  Kg2 {[%clk 0:00:20]} 57. Kg5 {[%clk 0:00:11]}  Kf2 {[%clk 0:00:20]} 58. Rc3 {[%clk 0:00:11]}  Kg2 {[%clk 0:00:21]} 59. Ra3 {[%clk 0:00:11]} 1/2-1/2


[Site "https://www.chess.com"]

[Event "Titled Tuesday Blitz March 15 Late 2022"]
[White "Srihari L R"]
[Black "Al-Tarboush, Ward"]
[WhiteFideId "46617116"]
[BlackFideId "7601450"]
[WhiteElo "2121"]
[BlackElo "2276"]
[Result "0-1"]
[Round "11"]
[TimeControl "180+1"]
[Date "2022.03.15"]
[WhiteClock "0:00:09"]
[BlackClock "0:01:37"]

1. b3 {[%clk 0:03:00]}  e5 {[%clk 0:02:59]} 2. Bb2 {[%clk 0:03:00]}  Nc6 {[%clk 0:03:00]} 3. e3 {[%clk 0:03:01]}  Nf6 {[%clk 0:03:00]} 4. Bb5 {[%clk 0:02:59]}  Bd6 {[%clk 0:03:00]} 5. Nf3 {[%clk 0:02:58]}  Qe7 {[%clk 0:03:00]} 6. O-O {[%clk 0:02:56]}  a6 {[%clk 0:03:01]} 7. Be2 {[%clk 0:02:56]}  b5 {[%clk 0:03:00]} 8. d4 {[%clk 0:02:55]}  Bb7 {[%clk 0:03:00]} 9. c4 {[%clk 0:02:49]}  bxc4 {[%clk 0:02:53]} 10. bxc4 {[%clk 0:02:49]}  exd4 {[%clk 0:02:51]} 11. exd4 {[%clk 0:02:47]}  O-O {[%clk 0:02:51]} 12. Re1 {[%clk 0:02:45]}  Bf4 {[%clk 0:02:48]} 13. Nc3 {[%clk 0:02:44]}  Rfe8 {[%clk 0:02:42]} 14. d5 {[%clk 0:02:22]}  Ne5 {[%clk 0:02:38]} 15. Nd4 {[%clk 0:02:20]}  d6 {[%clk 0:02:34]} 16. Bf1 {[%clk 0:02:14]}  Qd7 {[%clk 0:02:33]} 17. g3 {[%clk 0:02:05]}  Bh6 {[%clk 0:02:33]} 18. Bc1 {[%clk 0:02:04]}  Bxc1 {[%clk 0:02:32]} 19. Qxc1 {[%clk 0:02:03]}  Rab8 {[%clk 0:02:29]} 20. Rb1 {[%clk 0:01:59]}  h6 {[%clk 0:02:30]} 21. Qc2 {[%clk 0:01:54]}  Ba8 {[%clk 0:02:28]} 22. Qa4 {[%clk 0:01:53]}  Qxa4 {[%clk 0:02:23]} 23. Nxa4 {[%clk 0:01:54]}  Rxb1 {[%clk 0:02:15]} 24. Rxb1 {[%clk 0:01:53]}  Ne4 {[%clk 0:02:16]} 25. Rb2 {[%clk 0:01:23]}  c6 {[%clk 0:02:13]} 26. f4 {[%clk 0:01:12]}  c5 {[%clk 0:02:07]} 27. Nf5 {[%clk 0:01:03]}  Nf3+ {[%clk 0:02:01]} 28. Kg2 {[%clk 0:00:59]}  Ne1+ {[%clk 0:02:01]} 29. Kh1 {[%clk 0:00:50]}  g6 {[%clk 0:01:55]} 30. Nxh6+ {[%clk 0:00:49]}  Kg7 {[%clk 0:01:55]} 31. Ng4 {[%clk 0:00:49]}  f5 {[%clk 0:01:51]} 32. Nf2 {[%clk 0:00:36]}  Nf3 {[%clk 0:01:51]} 33. Nxe4 {[%clk 0:00:27]}  fxe4 {[%clk 0:01:52]} 34. Nc3 {[%clk 0:00:24]}  e3 {[%clk 0:01:52]} 35. Be2 {[%clk 0:00:24]}  Nd4 {[%clk 0:01:52]} 36. Kg1 {[%clk 0:00:23]}  Re7 {[%clk 0:01:52]} 37. Bd3 {[%clk 0:00:22]}  Bb7 {[%clk 0:01:52]} 38. Ne2 {[%clk 0:00:22]}  Nf3+ {[%clk 0:01:51]} 39. Kh1 {[%clk 0:00:18]}  Bc8 {[%clk 0:01:50]} 40. Rb1 {[%clk 0:00:17]}  Nd2 {[%clk 0:01:45]} 41. Rb6 {[%clk 0:00:17]}  Bg4 {[%clk 0:01:38]} 42. Rxd6 {[%clk 0:00:13]}  Bf3+ {[%clk 0:01:38]} 43. Kg1 {[%clk 0:00:13]}  Rb7 {[%clk 0:01:39]} 44. Rxg6+ {[%clk 0:00:10]}  Kf7 {[%clk 0:01:39]} 45. Re6 {[%clk 0:00:05]}  Nxc4 {[%clk 0:01:28]} 46. Bxc4 {[%clk 0:00:02]}  Rb1+ {[%clk 0:01:28]} 47. Nc1 {[%clk 0:00:01]}  Rxc1+ {[%clk 0:01:28]} 48. Bf1 {[%clk 0:00:02]}  e2 {[%clk 0:01:29]} 49. Rxe2 {[%clk 0:00:02]}  Bxe2 {[%clk 0:01:30]} 50. Kf2 {[%clk 0:00:02]}  Bxf1 {[%clk 0:01:30]} 51. d6 {[%clk 0:00:03]}  Bb5 {[%clk 0:01:31]} 52. d7 {[%clk 0:00:04]}  Bxd7 {[%clk 0:01:31]} 53. h3 {[%clk 0:00:05]}  Rc2+ {[%clk 0:01:31]} 54. Kf3 {[%clk 0:00:05]}  Rxa2 {[%clk 0:01:32]} 55. g4 {[%clk 0:00:05]}  Ra3+ {[%clk 0:01:33]} 56. Kg2 {[%clk 0:00:05]}  Bc6+ {[%clk 0:01:34]} 57. Kh2 {[%clk 0:00:06]}  c4 {[%clk 0:01:34]} 58. f5 {[%clk 0:00:06]}  c3 {[%clk 0:01:35]} 59. g5 {[%clk 0:00:07]}  c2 {[%clk 0:01:36]} 60. g6+ {[%clk 0:00:08]}  Kf6 {[%clk 0:01:36]} 61. g7 {[%clk 0:00:08]}  Kxg7 {[%clk 0:01:37]} 62. f6+ {[%clk 0:00:08]}  Kxf6 {[%clk 0:01:38]} 63. h4 {[%clk 0:00:09]}  c1=Q {[%clk 0:01:38]} 64. h5 {[%clk 0:00:09]}  Qd2+ {[%clk 0:01:36]} 65. Kg1 {[%clk 0:00:09]}  Qg2# {[%clk 0:01:37]} 0-1


[Site "https://www.chess.com"]

[Event "Titled Tuesday Blitz March 15 Late 2022"]
[White "Vovk, Orest"]
[Black "Goryachkina, Aleksandra"]
[WhiteFideId "14113490"]
[BlackFideId "4147103"]
[WhiteElo "2203"]
[BlackElo "2426"]
[Result "1/2-1/2"]
[Round "11"]
[TimeControl "180+1"]
[Date "2022.03.15"]
[WhiteClock "0:00:04"]
[BlackClock "0:00:03"]

1. h4 {[%clk 0:02:46]}  e5 {[%clk 0:02:56]} 2. h5 {[%clk 0:02:44]}  h6 {[%clk 0:02:56]} 3. d4 {[%clk 0:02:42]}  e4 {[%clk 0:02:42]} 4. d5 {[%clk 0:02:41]}  Nf6 {[%clk 0:02:40]} 5. Nc3 {[%clk 0:02:41]}  Bb4 {[%clk 0:02:37]} 6. Qd4 {[%clk 0:02:40]}  Bxc3+ {[%clk 0:02:19]} 7. Qxc3 {[%clk 0:02:39]}  O-O {[%clk 0:02:18]} 8. d6 {[%clk 0:02:33]}  cxd6 {[%clk 0:02:17]} 9. Bf4 {[%clk 0:02:33]}  d5 {[%clk 0:02:13]} 10. O-O-O {[%clk 0:02:32]}  Nc6 {[%clk 0:02:12]} 11. e3 {[%clk 0:02:32]}  d6 {[%clk 0:02:08]} 12. Ne2 {[%clk 0:02:24]}  Be6 {[%clk 0:02:06]} 13. Qa3 {[%clk 0:02:13]}  Ne5 {[%clk 0:02:02]} 14. Nd4 {[%clk 0:02:08]}  a6 {[%clk 0:01:52]} 15. Be2 {[%clk 0:02:04]}  Rc8 {[%clk 0:01:51]} 16. Kb1 {[%clk 0:02:01]}  Qb6 {[%clk 0:01:45]} 17. Qb3 {[%clk 0:01:57]}  Qc7 {[%clk 0:01:25]} 18. Rhg1 {[%clk 0:01:50]}  Bg4 {[%clk 0:01:06]} 19. Bxg4 {[%clk 0:01:40]}  Nexg4 {[%clk 0:00:58]} 20. f3 {[%clk 0:01:39]}  Ne5 {[%clk 0:00:57]} 21. fxe4 {[%clk 0:01:24]}  dxe4 {[%clk 0:00:32]} 22. Bxe5 {[%clk 0:01:23]}  dxe5 {[%clk 0:00:31]} 23. Nf5 {[%clk 0:01:22]}  Rfd8 {[%clk 0:00:29]} 24. Rxd8+ {[%clk 0:01:13]}  Rxd8 {[%clk 0:00:29]} 25. a3 {[%clk 0:01:14]}  Ng4 {[%clk 0:00:23]} 26. Qb4 {[%clk 0:01:01]}  Nf6 {[%clk 0:00:19]} 27. g4 {[%clk 0:00:57]}  Qd7 {[%clk 0:00:18]} 28. Ne7+ {[%clk 0:00:45]}  Kh8 {[%clk 0:00:18]} 29. g5 {[%clk 0:00:45]}  hxg5 {[%clk 0:00:17]} 30. Rxg5 {[%clk 0:00:46]}  Nd5 {[%clk 0:00:07]} 31. Nxd5 {[%clk 0:00:30]}  Qxd5 {[%clk 0:00:08]} 32. Qe7 {[%clk 0:00:22]}  Rc8 {[%clk 0:00:06]} 33. Qxe5 {[%clk 0:00:10]}  Qd1+ {[%clk 0:00:05]} 34. Ka2 {[%clk 0:00:10]}  f6 {[%clk 0:00:06]} 35. Qe6 {[%clk 0:00:06]}  Qxc2 {[%clk 0:00:06]} 36. h6 {[%clk 0:00:02]}  Qc4+ {[%clk 0:00:03]} 37. Qxc4 {[%clk 0:00:02]}  Rxc4 {[%clk 0:00:04]} 38. hxg7+ {[%clk 0:00:03]}  Kg8 {[%clk 0:00:04]} 39. Rg4 {[%clk 0:00:04]}  f5 {[%clk 0:00:03]} 40. Rg5 {[%clk 0:00:03]}  Rc5 {[%clk 0:00:03]} 41. Kb3 {[%clk 0:00:03]}  a5 {[%clk 0:00:03]} 42. a4 {[%clk 0:00:03]}  b6 {[%clk 0:00:03]} 43. Ka2 {[%clk 0:00:03]}  b5 {[%clk 0:00:02]} 44. axb5 {[%clk 0:00:03]}  Rxb5 {[%clk 0:00:03]} 45. Ka3 {[%clk 0:00:03]}  Rd5 {[%clk 0:00:02]} 46. b3 {[%clk 0:00:03]}  Rc5 {[%clk 0:00:03]} 47. Ka4 {[%clk 0:00:03]}  Rd5 {[%clk 0:00:03]} 48. Ka3 {[%clk 0:00:03]}  Rc5 {[%clk 0:00:02]} 49. Ka4 {[%clk 0:00:04]}  Rd5 {[%clk 0:00:03]} 50. Ka3 {[%clk 0:00:04]} 1/2-1/2


[Site "https://www.chess.com"]